bitfinex-derivatives/quotes_BTCF0:USTF0_20251109
["timestamp","ask_amount","ask_price","bid_price","bid_amount"]
[1762678675769,0.0233,101990.0,101980.0,0.59969085]
[1762678675970,0.04564,101990.0,101980.0,0.59969085]
[1762678678081,0.04564,101990.0,101980.0,0.67007102]
[1762678679273,0.37420705,102000.0,101990.0,0.098072]
[1762678679476,0.44345212,102000.0,101990.0,0.145312]
[1762678680580,0.44345212,102000.0,101990.0,0.146312]
[1762678681081,0.44345212,102000.0,101990.0,0.148312]
[1762678682279,0.08265212,102000.0,101990.0,0.509112]
[1762678683272,0.08265212,102000.0,101990.0,0.148312]
[1762678687286,0.18071452,102000.0,101990.0,0.148312]
[1762678692489,0.54151452,102000.0,101990.0,0.148312]
[1762678694484,0.54151452,102000.0,101990.0,0.144902]
[1762678700383,0.54151452,102000.0,101990.0,0.04683]
[1762678702096,0.54151452,102000.0,101990.0,0.1449021]
[1762678703990,0.54151452,102000.0,101990.0,0.04683]
[1762678706897,0.54151452,102000.0,101990.0,0.003]
[1762678710190,0.54151452,102000.0,101990.0,0.146112]
[1762678713798,0.18071452,102000.0,101990.0,0.146112]
[1762678717802,0.18071452,102000.0,101990.0,0.506912]
[1762678718508,0.18071452,102000.0,101990.0,0.146112]
[1762678718997,0.18158085,102000.0,101990.0,0.146112]
[1762678723002,0.08351845,102000.0,101990.0,0.146112]
[1762678724407,0.18158085,102000.0,101990.0,0.146112]
[1762678724798,0.08351845,102000.0,101990.0,0.146112]
[1762678725109,0.05986338,102000.0,101990.0,0.146112]
[1762678726009,0.15792578,102000.0,101990.0,0.146112]
[1762678726206,0.18157738,102000.0,101990.0,0.146112]
[1762678730613,0.54237738,102000.0,101990.0,0.146112]
[1762678730807,0.18157738,102000.0,101990.0,0.146112]
[1762678731414,0.54237738,102000.0,101990.0,0.146112]
[1762678735217,0.18157738,102000.0,101990.0,0.146112]
[1762678735518,0.54237738,102000.0,101990.0,0.146112]
[1762678737520,0.18157738,102000.0,101990.0,0.146112]
[1762678738419,0.54237738,102000.0,101990.0,0.146112]
[1762678739021,0.18157738,102000.0,101990.0,0.146112]
[1762678740011,0.08351498,102000.0,101990.0,0.146112]
[1762678740206,0.18157738,102000.0,101990.0,0.146112]
[1762678740522,0.54237738,102000.0,101990.0,0.146112]
[1762678768142,0.18157738,102000.0,101990.0,0.146112]
[1762678768343,0.08351498,102000.0,101990.0,0.146112]
[1762678768539,0.18157738,102000.0,101990.0,0.146112]
[1762678769738,0.07025498,102000.0,101990.0,0.158982]
[1762678769930,0.07025498,102000.0,101990.0,0.519782]
[1762678770346,0.04660338,102000.0,101990.0,0.519782]
[1762678770548,0.02426338,102000.0,101990.0,0.519782]
[1762678770858,0.00101338,102000.0,101990.0,0.83528217]
[1762678771036,0.00101338,102000.0,101990.0,0.764902]
[1762678771344,0.00101338,102000.0,101990.0,0.85319382]
[1762678771647,0.00101338,102000.0,101990.0,1.40259382]
[1762678771843,0.00101338,102000.0,101990.0,2.00259382]
[1762678774139,0.00101338,102000.0,101990.0,1.75747382]
[1762678774441,0.00101338,102000.0,101990.0,2.00259382]
[1762678775550,0.00101338,102000.0,101990.0,1.75747382]
[1762678776062,0.00101338,102000.0,101990.0,2.00259382]
[1762678776548,0.00101338,102000.0,101990.0,1.914302]
[1762678776748,0.00101338,102000.0,101990.0,1.314302]
[1762678777649,0.00101338,102000.0,101990.0,1.40259382]
[1762678778155,0.00101338,102000.0,101990.0,1.15747382]
[1762678778454,0.00101338,102000.0,101990.0,1.314302]
[1762678780150,0.00101338,102000.0,101990.0,1.069182]
[1762678780451,0.00101338,102000.0,101990.0,1.314302]
[1762678781453,8e-08,102000.0,101990.0,1.314302]
[1762678781652,8e-08,102000.0,101990.0,1.069182]
[1762678782043,8e-08,102000.0,101990.0,1.314302]
[1762678782349,8e-08,102000.0,101990.0,1.069182]
[1762678782551,8e-08,102000.0,101990.0,1.314302]
[1762678782853,8e-08,102000.0,101990.0,1.40259382]
[1762678783351,8e-08,102000.0,101990.0,1.15747382]
[1762678784055,8e-08,102000.0,101990.0,1.40259382]
[1762678785156,8e-08,102000.0,101990.0,1.15747382]
[1762678785546,8e-08,102000.0,101990.0,1.40259382]
[1762678786152,8e-08,102000.0,101990.0,1.15747382]
[1762678786451,8e-08,102000.0,101990.0,1.40259382]
[1762678790746,8e-08,102000.0,101990.0,1.15747382]
[1762678790945,8e-08,102000.0,101990.0,1.40259382]
[1762678792658,8e-08,102000.0,101990.0,1.15747382]
[1762678792847,8e-08,102000.0,101990.0,1.40259382]
[1762678794963,8e-08,102000.0,101990.0,1.55089382]
[1762678795259,8e-08,102010.0,102000.0,0.1561924]
[1762678795458,8e-08,102010.0,102000.0,0.58740372]
[1762678795653,8e-08,102010.0,102000.0,0.83248372]
[1762678796256,8e-08,102010.0,102000.0,0.58740372]
[1762678796459,8e-08,102010.0,102000.0,0.83248372]
[1762678797255,8e-08,102010.0,102000.0,0.58740372]
[1762678797445,8e-08,102010.0,102000.0,0.83248372]
[1762678798058,8e-08,102010.0,102000.0,0.58740372]
[1762678798460,8e-08,102010.0,102000.0,0.83248372]
[1762678799157,8e-08,102010.0,102000.0,0.58740372]
[1762678799550,8e-08,102010.0,102000.0,0.83248372]
[1762678800258,8e-08,102010.0,102000.0,0.7620724]
[1762678801068,8e-08,102010.0,102000.0,0.85036422]
[1762678801250,8e-08,102010.0,102000.0,0.75358422]
[1762678801451,8e-08,102010.0,102000.0,0.9103724]
[1762678801653,8e-08,102010.0,102000.0,1.03398095]
[1762678802355,8e-08,102010.0,102000.0,1.13201536]
[1762678802561,8e-08,102010.0,102000.0,0.88693536]
[1762678802762,8e-08,102020.0,102010.0,0.1545628]
[1762678803056,8e-08,102020.0,102010.0,0.63897135]
[1762678803363,8e-08,102040.0,102030.0,0.1543536]
[1762678803554,8e-08,102040.0,102030.0,0.8759536]
[1762678803856,8e-08,102040.0,102030.0,1.79376215]
[1762678804063,8e-08,102040.0,102030.0,1.09758695]
[1762678804248,8e-08,102040.0,102030.0,1.97967478]
[1762678804454,8e-08,102040.0,102030.0,1.85606623]
[1762678804654,8e-08,102040.0,102030.0,1.6210988]
[1762678804855,8e-08,102040.0,102030.0,1.8660988]
[1762678805256,8e-08,102040.0,102030.0,1.94512659]
[1762678805457,8e-08,102040.0,102030.0,2.71209556]
[1762678805765,8e-08,102040.0,102030.0,1.94612659]
[1762678806355,8e-08,102040.0,102030.0,1.94712659]
[1762678807067,3e-08,102050.0,102040.0,0.154124]
[1762678807366,3e-08,102050.0,102040.0,1.13426104]
[1762678807961,3e-08,102050.0,102040.0,1.13422104]
[1762678808161,0.02240003,102050.0,102040.0,1.13422104]
[1762678808362,0.02340003,102050.0,102040.0,1.13422104]
[1762678808569,0.04520003,102050.0,102040.0,1.13422104]
[1762678809159,0.04520003,102050.0,102040.0,1.064044]
[1762678809360,0.00200003,102050.0,102040.0,1.064044]
[1762678809756,0.02440003,102050.0,102040.0,1.064044]
[1762678811067,0.00200003,102050.0,102040.0,1.064044]
[1762678811264,0.00200003,102050.0,102040.0,1.309044]
[1762678811461,0.00200003,102050.0,102040.0,1.064044]
[1762678812469,3e-08,102050.0,102040.0,1.064044]
[1762678813078,0.05080528,102060.0,102050.0,0.04298]
[1762678813382,0.05080528,102060.0,102050.0,0.5153244]
[1762678813679,0.06417528,102060.0,102050.0,1.0644044]
[1762678813884,0.06417528,102060.0,102050.0,1.2127044]
[1762678814279,0.06417528,102060.0,102050.0,1.2147044]
[1762678814685,0.06417528,102060.0,102050.0,1.2167044]
[1762678817684,0.05080528,102060.0,102050.0,1.2167044]
[1762678818181,0.06417528,102060.0,102050.0,1.2167044]
[1762678822380,0.06417528,102060.0,102050.0,0.6676244]
[1762678823488,0.06417528,102060.0,102050.0,0.5193244]
[1762678825691,0.05080528,102060.0,102050.0,0.5193244]
[1762678827089,0.06394528,102060.0,102050.0,0.5193244]
[1762678827788,0.05080528,102060.0,102050.0,0.5193244]
[1762678827985,0.05087528,102060.0,102050.0,0.5193244]
[1762678828190,0.06401528,102060.0,102050.0,0.8665944]
[1762678828581,0.06401528,102060.0,102050.0,1.0148944]
[1762678829291,0.05087528,102060.0,102050.0,1.0284244]
[1762678829479,0.00660528,102060.0,102050.0,1.0284244]
[1762678829883,0.00660528,102060.0,102050.0,1.0254244]
[1762678830079,0.02917528,102060.0,102050.0,1.0264244]
[1762678831282,0.02917528,102060.0,102050.0,1.09660144]
[1762678831479,0.06418528,102060.0,102050.0,1.09660144]
[1762678835684,0.00660528,102060.0,102050.0,1.14956079]
[1762678835993,8e-08,102060.0,102050.0,1.16727158]
[1762678836194,0.04444008,102060.0,102050.0,1.11431223]
[1762678836793,0.00914952,102060.0,102050.0,1.11431223]
[1762678837096,0.03171952,102060.0,102050.0,1.11431223]
[1762678838305,0.02257,102060.0,102050.0,1.11431223]
[1762678838490,0.05159594,102070.0,102060.0,0.1568148]
[1762678838695,0.05159594,102070.0,102060.0,0.5880947]
[1762678838894,0.14959114,102070.0,102060.0,0.5880947]
[1762678839096,0.05756594,102070.0,102060.0,0.5741047]
[1762678839595,0.15556114,102070.0,102060.0,0.5741047]
[1762678842192,0.05756594,102070.0,102060.0,0.5741047]
[1762678844100,0.02227382,102070.0,102060.0,0.5880947]
[1762678844395,0.03887382,102070.0,102060.0,0.5880947]
[1762678849602,0.13686902,102070.0,102060.0,0.2272947]
[1762678849898,0.49766902,102070.0,102060.0,0.2272947]
[1762678850086,0.46237543,102070.0,102060.0,0.2272947]
[1762678852696,0.48579813,102070.0,102060.0,0.1568148]
[1762678854390,0.46237543,102070.0,102060.0,0.1568148]
[1762678854699,0.48579804,102070.0,102060.0,0.1568148]
[1762678855401,0.46237543,102070.0,102060.0,0.1568148]
[1762678855901,0.48579798,102070.0,102060.0,0.1568148]
[1762678856987,0.46237543,102070.0,102060.0,0.1568148]
[1762678857203,0.48579852,102070.0,102060.0,0.1568148]
[1762678860302,0.63308784,102070.0,102060.0,0.1568148]
[1762678862796,0.61066475,102070.0,102060.0,0.1568148]
[1762678864405,0.60966475,102070.0,102060.0,0.1568148]
[1762678865307,0.61066475,102070.0,102060.0,0.1568148]
[1762678866803,0.24986475,102070.0,102060.0,0.1568148]
[1762678876109,0.61066475,102070.0,102060.0,0.05881]
[1762678876306,0.0980048,102060.0,102050.0,0.1285999]
[1762678876500,0.48217486,102060.0,102050.0,0.1561344]
[1762678877106,0.48217486,102060.0,102050.0,0.05812]
[1762678877312,0.4588048,102060.0,102050.0,0.1561344]
[1762678878408,0.4588048,102060.0,102050.0,0.05812]
[1762678878599,0.4588048,102060.0,102050.0,0.1561344]
[1762678882511,0.4588048,102060.0,102050.0,0.05812]
[1762678883019,0.4588048,102060.0,102050.0,0.1561344]
[1762678883714,0.4588048,102060.0,102050.0,0.05812]
[1762678883918,0.4588048,102060.0,102050.0,0.1561344]
[1762678884714,0.48215467,102060.0,102050.0,0.1561344]
[1762678886514,0.4588048,102060.0,102050.0,0.1561344]
[1762678887115,0.48215391,102060.0,102050.0,0.1561344]
[1762678894512,0.4588048,102060.0,102050.0,0.1561344]
[1762678896717,0.3608,102060.0,102050.0,0.1561344]
[1762678897419,0.48215468,102060.0,102050.0,0.05812]
[1762678897714,0.48215468,102060.0,102050.0,0.1561344]
[1762678904419,0.48215468,102060.0,102050.0,0.05812]
[1762678904623,0.48215468,102060.0,102050.0,0.03541]
[1762678905724,0.48215468,102060.0,102050.0,0.05722]
[1762678907526,0.48215468,102060.0,102050.0,0.05807]
[1762678908317,0.0980144,102050.0,102040.0,0.05780705]
[1762678908524,0.48216428,102050.0,102040.0,0.05780705]
[1762678909528,0.48216428,102050.0,102040.0,0.05880705]
[1762678910531,0.48216428,102050.0,102040.0,0.05980705]
[1762678913332,0.62956388,102050.0,102040.0,0.05980705]
[1762678913533,0.62956388,102050.0,102040.0,0.15783105]
[1762678914134,0.62956388,102050.0,102040.0,0.05980705]
[1762678919140,0.62956388,102050.0,102040.0,0.15783105]
[1762678919739,0.62956388,102050.0,102040.0,0.05980705]
[1762678922637,0.62956388,102050.0,102040.0,0.15783105]
[1762678923142,0.606214,102050.0,102040.0,0.15783105]
[1762678925648,0.245414,102050.0,102040.0,0.15783105]
[1762678926046,0.4588048,102060.0,102050.0,0.1541544]
[1762678926247,0.48216174,102060.0,102050.0,0.1541544]
[1762678926438,0.62865993,102060.0,102050.0,0.1541544]
[1762678927240,0.48216174,102060.0,102050.0,0.1541544]
[1762678927742,0.02335694,102060.0,102050.0,0.1541544]
[1762678927940,0.0980048,102060.0,102050.0,0.1106844]
[1762678928247,0.0980048,102060.0,102050.0,0.1541544]
[1762678928447,0.458798,102070.0,102060.0,0.1541448]
[1762678928650,0.48215523,102070.0,102060.0,0.1541448]
[1762678928945,0.62964151,102070.0,102060.0,0.1541448]
[1762678930546,0.63064151,102070.0,102060.0,0.1541448]
[1762678931546,0.53264351,102070.0,102060.0,0.1541448]
[1762678931748,0.02435723,102070.0,102060.0,0.1541448]
[1762678931948,0.001,102070.0,102060.0,0.1541448]
[1762678933855,0.46643478,102080.0,102070.0,0.1541352]
[1762678936558,0.48967762,102080.0,102070.0,0.1541352]
[1762678937362,0.46643478,102080.0,102070.0,0.1541352]
[1762678938154,0.48967324,102080.0,102070.0,0.1541352]
[1762678938360,0.48967324,102080.0,102070.0,0.05614]
[1762678938664,0.48967324,102080.0,102070.0,0.1541352]
[1762678940058,0.12886654,102080.0,102070.0,0.1541352]
[1762678940565,0.03088094,102080.0,102070.0,0.1541352]
[1762678941558,0.00764248,102080.0,102070.0,0.1541352]
[1762678942767,0.03086927,102080.0,102070.0,0.1541352]
[1762678943262,0.00764248,102080.0,102070.0,0.1541352]
[1762678943861,0.10562808,102080.0,102070.0,0.1541352]
[1762678944172,0.00764248,102080.0,102070.0,0.1541352]
[1762678944767,0.00764248,102080.0,102070.0,0.23232467]
[1762678945165,0.10562808,102080.0,102070.0,0.23232467]
[1762678946867,0.00764248,102080.0,102070.0,0.23232467]
[1762678947067,0.10562808,102080.0,102070.0,0.23232467]
[1762678948669,0.00764248,102080.0,102070.0,0.23232467]
[1762678952671,0.00764248,102080.0,102070.0,0.59312467]
[1762678955470,0.03089051,102080.0,102070.0,0.59312467]
[1762678957565,0.03089051,102080.0,102070.0,0.23232467]
[1762678957767,0.03089051,102080.0,102070.0,0.59312467]
[1762678958676,0.12887611,102080.0,102070.0,0.59312467]
[1762678959876,0.03089051,102080.0,102070.0,0.59312467]
[1762678961280,0.48967611,102080.0,102070.0,0.23232467]
[1762678961575,0.48967611,102080.0,102070.0,0.05614]
[1762678962577,0.48967611,102080.0,102070.0,0.035]
[1762678962779,0.63594703,102080.0,102070.0,0.035]
[1762678963980,0.63694703,102080.0,102070.0,0.035]
[1762678964678,0.63594703,102080.0,102070.0,0.035]
[1762678964977,0.63894703,102080.0,102070.0,0.035]
[1762678967882,0.67424227,102080.0,102070.0,0.035]
[1762678969977,1.03504227,102080.0,102070.0,0.035]
[1762678970373,1.03504227,102080.0,102070.0,0.05656]
[1762678971381,0.99974703,102080.0,102070.0,0.05656]
[1762678977494,0.99674703,102080.0,102070.0,0.05656]
[1762678977694,0.99774703,102080.0,102070.0,0.05656]
[1762678979792,0.99674703,102080.0,102070.0,0.05656]
[1762678979993,0.99774703,102080.0,102070.0,0.05656]
[1762678980593,0.99674703,102080.0,102070.0,0.05656]
[1762678980783,0.99974703,102080.0,102070.0,0.05656]
[1762678981984,0.99974703,102080.0,102070.0,0.035]
[1762678982189,0.0979952,102070.0,102060.0,0.05743705]
[1762678982390,0.4587952,102070.0,102060.0,0.05743705]
[1762678983293,0.4597952,102070.0,102060.0,0.05743705]
[1762678987299,0.48314524,102070.0,102060.0,0.05743705]
[1762678987497,0.4597952,102070.0,102060.0,0.05743705]
[1762678988299,0.48314861,102070.0,102060.0,0.05743705]
[1762678989004,0.48314861,102070.0,102060.0,0.15544185]
[1762678990900,0.12234861,102070.0,102060.0,0.15544185]
[1762678993415,0.12234861,102070.0,102060.0,0.05743705]
[1762678993416,0.48314861,102070.0,102060.0,0.05743705]
[1762678993806,0.48214861,102070.0,102060.0,0.05743705]
[1762678995316,0.48214861,102070.0,102060.0,0.15544185]
[1762678995507,0.02335341,102070.0,102060.0,0.15544185]
[1762678995706,0.12134861,102070.0,102060.0,0.51624185]
[1762678996417,0.02335341,102070.0,102060.0,0.51624185]
[1762678998516,0.46642808,102080.0,102070.0,0.0584]
[1762678998716,0.48991421,102080.0,102070.0,0.0584]
[1762678998911,0.48991421,102080.0,102070.0,0.1563952]
[1762679000009,0.49091421,102080.0,102070.0,0.1563952]
[1762679004320,0.49090281,102080.0,102070.0,0.1563952]
[1762679008120,0.13010281,102080.0,102070.0,0.1563952]
[1762679009221,0.03211721,102080.0,102070.0,0.1563952]
[1762679010521,0.13010281,102080.0,102070.0,0.1563952]
[1762679011021,0.03211721,102080.0,102070.0,0.1563952]
[1762679011208,0.13010281,102080.0,102070.0,0.1563952]
[1762679011615,0.03211721,102080.0,102070.0,0.1563952]
[1762679016528,0.13010281,102080.0,102070.0,0.1563952]
[1762679019129,0.12910281,102080.0,102070.0,0.1563952]
[1762679027126,0.03111721,102080.0,102070.0,0.1563952]
[1762679028935,0.03111422,102080.0,102070.0,0.1563952]
[1762679031341,0.12909982,102080.0,102070.0,0.1563952]
[1762679033232,0.12909982,102080.0,102070.0,0.2358545]
[1762679036037,0.03111422,102080.0,102070.0,0.2358545]
[1762679036543,0.12909982,102080.0,102070.0,0.2358545]
[1762679037941,0.03111422,102080.0,102070.0,0.2358545]
[1762679038142,0.12909982,102080.0,102070.0,0.2358545]
[1762679039843,0.48989982,102080.0,102070.0,0.2358545]
[1762679040844,0.03111422,102080.0,102070.0,0.2358545]
[1762679041241,0.48989982,102080.0,102070.0,0.0584]
[1762679041541,0.48989982,102080.0,102070.0,0.03624]
[1762679041542,0.63643062,102080.0,102070.0,0.03624]
[1762679041747,0.63643062,102080.0,102070.0,0.05919]
[1762679042344,0.63643062,102080.0,102070.0,0.01378]
[1762679042547,0.0979952,102070.0,102060.0,0.15542185]
[1762679042848,0.48226694,102070.0,102060.0,0.15542185]
[1762679043848,0.48326694,102070.0,102060.0,0.15542185]
[1762679049150,0.48326694,102070.0,102060.0,0.05741705]
[1762679054450,0.48326694,102070.0,102060.0,0.15542185]
[1762679054852,0.48326694,102070.0,102060.0,0.05741705]
[1762679055149,0.48326694,102070.0,102060.0,0.00014705]
[1762679055451,0.098024,102040.0,102030.0,0.05799]
[1762679055656,0.12155948,102040.0,102030.0,0.05799]
[1762679055841,0.48235948,102040.0,102030.0,0.05799]
[1762679056350,0.458824,102040.0,102030.0,0.05799]
[1762679056651,0.458824,102040.0,102030.0,0.05999]
[1762679056951,0.458824,102040.0,102030.0,0.06299]
[1762679057347,0.46857708,102040.0,102030.0,0.06299]
[1762679058449,0.458824,102040.0,102030.0,0.06299]
[1762679059645,0.458824,102040.0,102030.0,0.04004]
[1762679060045,0.458824,102040.0,102030.0,0.06299]
[1762679068064,0.819624,102040.0,102030.0,0.06299]
[1762679068764,0.098024,102040.0,102030.0,0.1610236]
[1762679069063,0.45896145,102050.0,102040.0,0.05836]
[1762679069263,0.48248754,102050.0,102040.0,0.05836]
[1762679069465,0.62966517,102050.0,102040.0,0.05836]
[1762679070667,0.62966517,102050.0,102040.0,0.157384]
[1762679070966,0.62966517,102050.0,102040.0,0.05936]
[1762679071267,0.62966517,102050.0,102040.0,0.158384]
[1762679073772,0.62966517,102050.0,102040.0,0.06036]
[1762679074069,0.62966517,102050.0,102040.0,0.158384]
[1762679076168,0.48248754,102050.0,102040.0,0.158384]
[1762679076468,0.02367314,102050.0,102040.0,0.158384]
[1762679076675,0.00014705,102050.0,102040.0,0.158384]
[1762679079175,0.09816145,102050.0,102040.0,0.158384]
[1762679079375,0.00014705,102050.0,102040.0,0.158384]
[1762679083969,0.09816145,102050.0,102040.0,0.158384]
[1762679090176,0.00014705,102050.0,102040.0,0.158384]
[1762679091670,0.00014705,102050.0,102040.0,0.519184]
[1762679095280,0.4587993,102070.0,102060.0,0.0214]
[1762679095485,0.0980048,102060.0,102050.0,0.05671]
[1762679095684,0.48271711,102060.0,102050.0,0.05671]
[1762679096188,0.48271711,102060.0,102050.0,0.1547244]
[1762679101686,0.48271711,102060.0,102050.0,0.05671]
[1762679103886,0.48271711,102060.0,102050.0,0.1547244]
[1762679104087,0.48271711,102060.0,102050.0,0.05671]
[1762679105290,0.48271711,102060.0,102050.0,0.1547244]
[1762679105991,0.48271711,102060.0,102050.0,0.05671]
[1762679114694,0.48271711,102060.0,102050.0,0.1547244]
[1762679117998,0.48271711,102060.0,102050.0,0.05671]
[1762679121201,0.48271711,102060.0,102050.0,0.1547244]
[1762679123198,0.48271711,102060.0,102050.0,0.05671]
[1762679125606,0.48271711,102060.0,102050.0,0.1547244]
[1762679125906,0.48271711,102060.0,102050.0,0.05671]
[1762679126501,0.48271711,102060.0,102050.0,0.1547244]
[1762679130007,0.48271711,102060.0,102050.0,0.05671]
[1762679130205,0.48271711,102060.0,102050.0,0.1547244]
[1762679130500,0.48293285,102060.0,102050.0,0.1547244]
[1762679132800,0.51815724,102060.0,102050.0,0.05671]
[1762679139503,0.51815724,102060.0,102050.0,0.1547244]
[1762679140312,0.51815724,102060.0,102050.0,0.05671]
[1762679141113,0.51815724,102060.0,102050.0,0.1547244]
[1762679142409,0.15735724,102060.0,102050.0,0.1547244]
[1762679142614,0.51815724,102060.0,102050.0,0.1547244]
[1762679142813,0.48293285,102060.0,102050.0,0.1547244]
[1762679149421,0.48293285,102060.0,102050.0,0.05671]
[1762679149813,0.48293285,102060.0,102050.0,0.1547244]
[1762679153528,0.02412805,102060.0,102050.0,0.1547244]
[1762679153735,0.48293285,102060.0,102050.0,0.1547244]
[1762679156539,0.38492805,102060.0,102050.0,0.1547244]
[1762679156838,0.02412805,102060.0,102050.0,0.1547244]
[1762679157034,0.04018,102070.0,102050.0,0.7604844]
[1762679157235,0.16208452,102070.0,102060.0,0.5177248]
[1762679157432,0.06408932,102070.0,102060.0,0.5177248]
[1762679158036,0.16208452,102070.0,102060.0,0.5177248]
[1762679159141,0.1381752,102070.0,102060.0,0.5177248]
[1762679159339,0.1381752,102070.0,102060.0,0.1569248]
[1762679159540,0.16206402,102070.0,102060.0,0.1569248]
[1762679159741,0.52286402,102070.0,102060.0,0.1569248]
[1762679163246,0.4989752,102070.0,102060.0,0.1569248]
[1762679163546,0.52285417,102070.0,102060.0,0.05892]
[1762679164949,0.52385417,102070.0,102060.0,0.05892]
[1762679165149,0.52385417,102070.0,102060.0,0.1569248]
[1762679168746,0.1391752,102070.0,102060.0,0.1569248]
[1762679171443,0.0989952,102070.0,102060.0,0.1569248]
[1762679174453,0.0989952,102070.0,102060.0,0.05892]
[1762679174749,0.1391752,102070.0,102060.0,0.05892]
[1762679178356,0.1391752,102070.0,102060.0,0.1569248]
[1762679178652,0.1391752,102070.0,102060.0,0.05892]
[1762679178860,0.5235087,102070.0,102060.0,0.05892]
[1762679181350,0.0980048,102060.0,102050.0,0.2063]
[1762679181550,0.4588048,102060.0,102050.0,0.2063]
[1762679181753,0.4823492,102060.0,102050.0,0.2063]
[1762679182954,0.4823492,102060.0,102050.0,0.3043144]
[1762679183258,0.4823492,102060.0,102050.0,0.058]
[1762679183650,0.4823492,102060.0,102050.0,0.1560144]
[1762679184062,0.4823492,102060.0,102050.0,0.058]
[1762679185656,0.4823492,102060.0,102050.0,0.1560144]
[1762679189162,0.4823492,102060.0,102050.0,0.02118]
[1762679189363,0.0980144,102050.0,102040.0,0.15607375]
[1762679190562,0.0980144,102050.0,102040.0,0.05905705]
[1762679190861,0.48235764,102050.0,102040.0,0.05905705]
[1762679191863,0.48235764,102050.0,102040.0,0.06005705]
[1762679192268,0.48235764,102050.0,102040.0,0.00214705]
[1762679203070,0.62961188,102050.0,102040.0,0.00214705]
[1762679208066,0.62961188,102050.0,102040.0,0.02388705]
[1762679209774,0.62961188,102050.0,102040.0,0.00214705]
[1762679213771,0.66483627,102050.0,102040.0,0.00214705]
[1762679214979,0.66483627,102050.0,102020.0,0.05655]
[1762679214980,0.0980336,102030.0,102020.0,0.05655]
[1762679215185,0.4588336,102030.0,102020.0,0.05655]
[1762679216576,0.4588336,102030.0,102020.0,0.05855]
[1762679217485,0.4588336,102030.0,102020.0,0.06155]
[1762679218178,0.49242533,102030.0,102020.0,0.06155]
[1762679218483,1.00000374,102030.0,102020.0,0.06155]
[1762679219485,1.00100374,102030.0,102020.0,0.05955]
[1762679220578,1.00100374,102030.0,102020.0,0.05655]
[1762679220777,1.00100374,102030.0,102020.0,0.01287]
[1762679221192,1.00100374,102030.0,102020.0,0.03406]
[1762679221386,1.00100374,102030.0,102020.0,0.05507]
[1762679222291,0.99099548,102030.0,102020.0,0.05507]
[1762679223392,1.00065242,102030.0,102020.0,0.05507]
[1762679223991,1.00065242,102030.0,102020.0,0.03406]
[1762679224789,1.00065242,102030.0,102020.0,0.01287]
[1762679225594,1.00065242,102030.0,102020.0,0.03406]
[1762679226092,1.00065242,102030.0,102020.0,0.05507]
[1762679227583,1.04085242,102030.0,102020.0,0.05507]
[1762679228592,1.01726895,102030.0,102020.0,0.05507]
[1762679228788,1.04083722,102030.0,102020.0,0.05507]
[1762679234395,1.03118028,102030.0,102020.0,0.05507]
[1762679235697,1.04082936,102030.0,102020.0,0.05507]
[1762679240890,1.04082936,102030.0,102020.0,0.03406]
[1762679241090,1.04082936,102030.0,102020.0,0.05507]
[1762679243105,1.03118028,102030.0,102020.0,0.05507]
[1762679244904,1.04119299,102030.0,102020.0,0.05507]
[1762679246399,1.03118028,102030.0,102020.0,0.05507]
[1762679247098,1.03118028,102030.0,102020.0,0.1531132]
[1762679247502,1.03118028,102030.0,102020.0,0.05507]
[1762679247705,1.03118028,102030.0,102020.0,0.1531132]
[1762679248199,0.67038028,102030.0,102020.0,0.1531132]
[1762679248601,0.57234668,102030.0,102020.0,0.1531132]
[1762679248900,0.67038028,102030.0,102020.0,0.1531132]
[1762679250005,0.57234668,102030.0,102020.0,0.1531132]
[1762679250193,0.67038028,102030.0,102020.0,0.1531132]
[1762679250398,0.57234668,102030.0,102020.0,0.1531132]
[1762679251104,0.67038028,102030.0,102020.0,0.1531132]
[1762679251511,0.66938028,102030.0,102020.0,0.1531132]
[1762679251800,0.66938028,102030.0,102020.0,0.1541132]
[1762679252909,0.66938028,102030.0,102020.0,0.1531132]
[1762679253200,0.30858028,102030.0,102020.0,0.1531132]
[1762679257207,0.06376827,102030.0,102020.0,0.5139132]
[1762679257507,0.0402,102030.0,102020.0,0.5843931]
[1762679257707,0.0402,102030.0,102020.0,0.58361826]
[1762679259009,0.0402,102030.0,102020.0,0.58461826]
[1762679259206,0.0402,102030.0,102020.0,0.58561826]
[1762679259405,0.00014705,102040.0,102030.0,0.1562136]
[1762679259712,0.02333705,102040.0,102030.0,0.1562136]
[1762679260014,0.00014705,102040.0,102030.0,0.1562136]
[1762679260219,0.00014705,102040.0,102030.0,0.5170136]
[1762679262614,0.00014705,102040.0,102030.0,0.5180136]
[1762679263015,0.00014705,102040.0,102030.0,0.5190136]
[1762679265002,0.00014705,102040.0,102030.0,0.7640136]
[1762679266720,0.0052,102050.0,102040.0,0.154304]
[1762679267218,0.0052,102050.0,102040.0,0.515104]
[1762679268015,0.02839,102050.0,102040.0,0.515104]
[1762679268717,0.05057,102050.0,102040.0,0.515104]
[1762679269421,0.05057,102050.0,102040.0,0.516104]
[1762679269922,0.0052,102050.0,102040.0,0.516104]
[1762679270412,0.0052,102050.0,102040.0,0.517104]
[1762679270915,0.05057,102050.0,102040.0,0.517104]
[1762679271725,0.05057,102050.0,102040.0,0.156304]
[1762679272113,0.1485844,102050.0,102040.0,0.156304]
[1762679275826,0.05057,102050.0,102040.0,0.156304]
[1762679276228,0.05057,102050.0,102040.0,0.517104]
[1762679280738,0.1485844,102050.0,102040.0,0.517104]
[1762679280938,0.05057,102050.0,102040.0,0.517104]
[1762679282442,0.1485844,102050.0,102040.0,0.517104]
[1762679282634,0.1485844,102050.0,102040.0,0.156304]
[1762679284742,0.05057,102050.0,102040.0,0.156304]
[1762679285135,0.0052,102050.0,102040.0,0.517104]
[1762679286443,0.0052,102050.0,102040.0,0.5875839]
[1762679288745,0.0052,102050.0,102040.0,0.7358839]
[1762679291441,0.0052,102050.0,102040.0,0.7348839]
[1762679291643,0.0052,102050.0,102040.0,0.7358839]
[1762679291845,0.0052,102050.0,102040.0,0.7348839]
[1762679292546,0.0052,102050.0,102040.0,0.5865839]
[1762679292947,0.0052,102050.0,102040.0,0.5855839]
[1762679294349,0.02851,102050.0,102040.0,0.5855839]
[1762679294850,0.0052,102050.0,102040.0,0.5855839]
[1762679296847,0.0052,102050.0,102040.0,0.5865839]
[1762679297354,0.0052,102050.0,102040.0,0.5875839]
[1762679300458,0.05163,102050.0,102040.0,0.5875839]
[1762679300958,0.02851,102050.0,102040.0,0.5875839]
[1762679301253,0.05163,102050.0,102040.0,0.5875839]
[1762679301557,0.17330484,102050.0,102040.0,0.156304]
[1762679302760,0.17330484,102050.0,102040.0,0.155304]
[1762679303061,0.17330484,102050.0,102040.0,0.156304]